Cogmind - Beta 10.2 @@@ ROGUE MODE // 2021.11.18 @ 13:10:34 // Winter2019/RPGLIKE Player: Storm Mk9 Result: Destroyed by Y-54 Guardian with Gatling Laser Performance ------------- Evolutions (3) 1500 Regions Visited (8) 1600 Robots Destroyed (103) 515 Value Destroyed (3104) 3104 Prototype IDs (35) 700 Alien Tech Used (0) 0 Bonus (813) 813 TOTAL SCORE: 8232 Bonus ------- High Alert Combat Kills 263 Follower Combat Kills 250 Aligned with FarCom 300 Cogmind --------- Core Integrity 0/1600 Matter 187/300 Energy 250/250 System Corruption 3% Temperature Cool (12) Movement Flying (24) Location -7/Factory Parts ------- > --- POWER (3) -------- Micro Nuclear Core Micro Nuclear Core Micro Nuclear Core > --- PROPULSION (5) --- Improved VTOL Module Improved VTOL Module Xenon Bombardment Thruster Improved Cesium-ion Thruster Cooled VTOL Module > --- UTILITY (4) ------ Advanced Targeting Computer Improved ECM Suite System Backup Module > --- WEAPON (2) ------- Enhanced Autogun Gauss Cannon > --- INVENTORY (0) ---- (None) Peak State ------------ > --- POWER ------------ Enhanced Nuclear Core Micro Nuclear Core Micro Nuclear Core > --- PROPULSION ------- Improved VTOL Module Improved VTOL Module Improved VTOL Module Xenon Bombardment Thruster Cooled VTOL Module > --- UTILITY ---------- Advanced Targeting Computer Improved ECM Suite Cloak of Protection System Backup Module > --- WEAPON ----------- Enhanced Autogun Enhanced Autogun > --- INVENTORY -------- (None) [Rating: 60] Favorites ----------- Power Ion Engine Engine Ion Engine Power Core Micro Nuclear Core Propulsion Light Treads Treads Light Treads Flight Unit Improved VTOL Module Utility Advanced Targeting Computer Device Cloak of Protection Processor Advanced Targeting Computer Protection Light Armor Plating Weapon Heavy EM Pulse Gun Energy Gun Heavy EM Pulse Gun Ballistic Gun Enhanced Autogun Ballistic Cannon Assault Cannon Impact Weapon Great Maul Build | -11 -10 -10 -9 -9 -9 -8 -8 -7 ------- Run | Scr Mat Min Mat Min Exi Min Mat Fac Slots Evolved 10 | 4 . 1 . . 1 . 3 1 Power 2 | 1 . . . . . . 1 . Propulsion 4 | 1 . . . . . . 2 1 Utility 3 | 1 . 1 . . 1 . . . Weapon 1 | 1 . . . . . . . . Parts Attached 67 | 9 10 2 10 . 2 . 20 14 Power 19 | 2 1 . 5 . . . 6 5 Engine 12 | 2 1 . 5 . . . 4 . Core 7 | . . . . . . . 2 5 Reactor . | . . . . . . . . . Propulsion 14 | 2 . . 1 . . . 7 4 Treads 4 | 2 . . 1 . . . 1 . Leg . | . . . . . . . . . Wheel . | . . . . . . . . . Hover . | . . . . . . . . . Flight 10 | . . . . . . . 6 4 Utility 16 | 3 6 . 2 . 2 . 2 1 Device 7 | 2 1 . . . 1 . 2 1 Storage . | . . . . . . . . . Processor 5 | 1 2 . 2 . . . . . Hackware . | . . . . . . . . . Protection 4 | . 3 . . . 1 . . . Artifact . | . . . . . . . . . Weapon 18 | 2 3 2 2 . . . 5 4 Energy Gun 12 | 2 3 . 2 . . . 4 1 Energy Cannon . | . . . . . . . . . Ballistic Gun 2 | . . . . . . . . 2 Ballistic Cannon 3 | . . 2 . . . . . 1 Launcher . | . . . . . . . . . Special Weapon . | . . . . . . . . . Impact Weapon 1 | . . . . . . . 1 . Slashing Weapon . | . . . . . . . . . Piercing Weapon . | . . . . . . . . . Special Melee Weapon . | . . . . . . . . . Unidentified Prototypes 12 | . . . 1 . . . 5 6 Parts Lost 3 | . . . . . . . 1 2 Power . | . . . . . . . . . Propulsion . | . . . . . . . . . Utility 2 | . . . . . . . 1 1 Weapon 1 | . . . . . . . . 1 Highest Loss Streak 1 | . . . . . . . 1 1 Average Slot Usage (%) 97 | . 99 94 93 100 99 100 98 97 Engine 17 | . 25 23 22 22 21 20 15 2 Core 3 | . . . . . . . 4 18 Treads 16 | . 25 23 22 22 21 20 10 . Flight 8 | . . . . . . . 14 34 Device 8 | . 9 . . . 5 10 12 20 Processor 12 | . 3 11 16 22 21 20 15 7 Protection 7 | . 10 11 11 11 8 10 6 . Energy Gun 13 | . 25 . 20 22 21 20 16 1 Ballistic Gun 1 | . . . . . . . . 9 Ballistic Cannon 4 | . . 22 1 . . . . . Naked Turns . | . . . . . . . . . Heaviest Build 39 | 13 19 23 23 23 31 31 32 39 Greatest Support 53 | 40 40 40 43 43 43 43 53 42 Greatest Overweight (x) 10 | . . . . . . . 10 . Average Overweight (x) . | . . . . . . . . . Largest Inventory Capacity . | . . . . . . . . . Average Capacity . | . . . . . . . . . Most Carried . | . . . . . . . . . Average Carried . | . . . . . . . . . Final Capacity . | . . . . . . . . . Final Carried . | . . . . . . . . . Class Distribution -------------------- 75% | Mutant 15% | Generator-Sprinter 5% | Infiltrator-Sprinter Dominant Class ---------------- Mutant | -10/Materials Mutant | -10/Mines Mutant | -9/Materials Mutant | -9/Mines Mutant | -9/Exiles Mutant | -8/Mines Mutant | -8/Materials Generator-Sprinter | -7/Factory Resources | -11 -10 -10 -9 -9 -9 -8 -8 -7 ----------- Run | Scr Mat Min Mat Min Exi Min Mat Fac Matter Collected 1313 | 290 90 120 140 . . 20 195 458 Remotely 110 | 110 . . . . . . . . Salvage Created 3448 | 128 556 229 776 68 . 125 648 918 Parts 191 | 10 29 16 36 2 . 7 54 37 Haulers Intercepted 4 | . 1 . 1 . . . 2 . Recyclers Shooed 4 | . 2 . . 1 . . 1 . Parts Field Recycled . | . . . . . . . . . Retrieved Matter . | . . . . . . . . . Parts Self-Destructed . | . . . . . . . . . Prevented . | . . . . . . . . . Kills | -11 -10 -10 -9 -9 -9 -8 -8 -7 ------- Run | Scr Mat Min Mat Min Exi Min Mat Fac Combat Hostiles Destroyed 70 | . 12 5 14 2 . 4 16 17 Guns 51 | . 12 . 9 2 . 3 12 13 Cannons 6 | . . 5 1 . . . . . AOE 11 | . . . 4 . . . 3 4 Classes Destroyed 15 | 2 5 1 2 1 . 1 1 2 Worker 6 | . 1 . 2 . . . 1 2 Builder 3 | . . 1 . . . . 1 1 Tunneler 3 | 2 . 1 . . . . . . Hauler 4 | . 1 . 1 . . . 2 . Recycler 3 | 1 1 . . 1 . . . . Mechanic 1 | . . . . . . . . 1 Operator 2 | . . . . . . . 1 1 Watcher 11 | . 2 . 2 . . . 2 5 Swarmer 19 | . 3 . 2 . . 3 5 6 Grunt 34 | . 9 5 8 . . . 6 6 Duelist 2 | . . . 1 . . . . 1 Sentry 10 | . . . 3 . . . 4 3 Demolisher 2 | . . . . 2 . . . . Hunter 2 | . . . . . . 1 1 . Programmer 1 | . . . . . . . . 1 Best Kill Streak 6 | 2 3 2 4 3 . 3 6 5 Combat Bots Only 6 | . 3 2 3 2 . 3 6 3 Max Kills in Single Turn 5 | 1 1 1 2 1 . 1 3 5 Gunslinging 1 | . . . . . . . 1 . Exploded 3 | . . . 2 . . . 2 3 Melee . | . . . . . . . . . Uniques/NPCs Destroyed . | . . . . . . . . . Combat | -11 -10 -10 -9 -9 -9 -8 -8 -7 -------- Run | Scr Mat Min Mat Min Exi Min Mat Fac Damage Taken 4000 | . 527 54 220 174 . 115 968 1942 Core 3026 | . 368 32 147 123 . 81 715 1560 Absorbed by Shields . | . . . . . . . . . Redirected to Core 2602 | . 305 32 140 92 . 81 641 1311 Core Remaining (%) 87 | 100 . 98 . . . 84 67 . Volleys Fired 254 | 4 61 9 35 5 . 8 49 83 Largest 2 | 2 2 2 2 2 . 2 2 2 Hottest 115 | 80 115 88 90 90 . 90 100 73 Shots Fired 486 | 8 122 18 70 10 . 16 95 147 Gun 449 | 8 122 . 62 10 . 16 95 136 Cannon 37 | . . 18 8 . . . . 11 Launcher . | . . . . . . . . . Special . | . . . . . . . . . Kinetic 157 | . . 18 8 . . . . 131 Thermal 128 | 4 122 . . . . . 2 . Explosive . | . . . . . . . . . Electromagnetic 201 | 4 . . 62 10 . 16 93 16 Robot Hit Streak 51 | 3 8 18 28 21 . 24 48 51 Robot Miss Streak 6 | 1 6 . 1 . . 1 1 1 Penetration Max . | . . . . . . . . . Secondary Targets 13 | . 4 . 2 . . 1 4 2 Max Gunslinging Chain 1 | . 1 . 1 . . 1 1 1 Shots Hit Robots 380 | 6 70 13 59 9 . 13 90 120 Core Hits 157 | 4 29 8 26 4 . 3 33 50 Critical Hits 2 | . . . . . . . . 2 Critical Kills 1 | . . . . . . . . 1 Critical Parts Destroyed 1 | . . . . . . . . 1 Melee Attacks . | . . . . . . . . . Impact . | . . . . . . . . . Slashing . | . . . . . . . . . Piercing . | . . . . . . . . . Sneak Attacks . | . . . . . . . . . Combat Hostiles . | . . . . . . . . . Follow-up Attacks . | . . . . . . . . . Damage Inflicted 8101 | 60 952 255 1243 127 . 260 1811 3393 Guns 5493 | 60 952 . 810 127 . 214 1345 1985 Cannons 557 | . . 252 136 . . . . 169 Explosions 2048 | . . . 297 . . 46 466 1239 Melee . | . . . . . . . . . Ramming 3 | . . 3 . . . . . . Kinetic 2247 | . . 252 136 . . . . 1859 Thermal 3054 | 21 952 . 297 . . 46 499 1239 Explosive . | . . . . . . . . . Electromagnetic 2797 | 39 . . 810 127 . 214 1312 295 Impact . | . . . . . . . . . Slashing . | . . . . . . . . . Piercing . | . . . . . . . . . Highest Corruption 3 | . 1 1 . . . . . 3 Average Corruption 1 | . 1 1 . . . . . 2 Corruption Purged 2 | . . . . . . . . 2 Effects 14 | . 2 8 . . . . . 4 Message Errors 3 | . 1 2 . . . . . . Heat Flow Errors 1 | . . . . . . . . 1 Energy Discharges 6 | . 1 5 . . . . . . Data Loss (minor) 4 | . . 1 . . . . . 3 Overload Shots . | . . . . . . . . . Overflow Damage 362 | . . . . . . . 20 342 Projectiles . | . . . . . . . . . Explosions 362 | . . . . . . . 20 342 Melee . | . . . . . . . . . Knockbacks . | . . . . . . . . . Impact . | . . . . . . . . . Kinetic . | . . . . . . . . . Secondary . | . . . . . . . . . Self-Inflicted Damage 13 | . . . . . . . 13 . Shots 1 | . . . . . . . 1 . Rammed 1 | . . 1 . . . . . . Targets Rammed 1 | . . 1 . . . . . . Kicked . | . . . . . . . . . Crushed . | . . . . . . . . . Highest Temperature 224 | . . . . . . . . 224 Average Temperature 114 | . . . . . . . . 114 Received Heat Transfer 1215 | . 222 30 69 . . . 261 633 Siege Activations . | . . . . . . . . . Robots Corrupted 2 | . . . . . . 1 1 . Combat Hostiles 2 | . . . . . . 1 1 . Parts Fried 14 | . . . 5 . . 1 5 3 Impact Corruptions . | . . . . . . . . . Robots Melted . | . . . . . . . . . Combat Hostiles . | . . . . . . . . . Parts Melted 5 | . 2 . 1 . . . 1 1 Heat Transferred 4566 | 50 2692 . 400 . . 50 574 800 Parts Sabotaged . | . . . . . . . . . Parts Stolen . | . . . . . . . . . Parts Stripped . | . . . . . . . . . Power Chain Reactions 12 | . . . 4 . . 1 7 . Missiles Intercepted . | . . . . . . . . . Alert | -11 -10 -10 -9 -9 -9 -8 -8 -7 ------- Run | Scr Mat Min Mat Min Exi Min Mat Fac Peak Influence 993 | 15 199 110 429 201 . 70 675 993 Initial 300 | . 9 23 . 166 . . 14 300 Average 213 | 6 114 59 208 189 . 37 267 506 Maximum Alert Level 3 | . . . 2 1 . . 2 3 Low Security (%) 66 | 100 100 100 56 34 . 100 63 . Level 1 10 | . . . 38 65 . . 2 16 Level 2 21 | . . . 5 . . . 33 73 Level 3 1 | . . . . . . . . 10 Level 4 . | . . . . . . . . . Level 5 . | . . . . . . . . . High Security . | . . . . . . . . . Max Security . | . . . . . . . . . Squads Dispatched 21 | . 1 2 4 . . . 8 6 Investigation 8 | . 1 2 1 . . . 3 1 Extermination 1 | . . . . . . . . 1 Reinforcement 6 | . . . 3 . . . 2 1 Assault . | . . . . . . . . . Garrison 6 | . . . . . . . 3 3 Intercept . | . . . . . . . . . Construction Impeded . | . . . . . . . . . Haulers Reinforced . | . . . . . . . . . Stealth | -11 -10 -10 -9 -9 -9 -8 -8 -7 --------- Run | Scr Mat Min Mat Min Exi Min Mat Fac Distress Signals 7 | . 1 . 2 1 . . 2 1 Communications Jammed . | . . . . . . . . . Distress Signals . | . . . . . . . . . Times Spotted 139 | . 20 7 30 2 . 4 49 27 Peak Tracking Total 12 | . 4 3 5 2 . 3 12 3 Tactical Retreats 11 | . . 1 . . . . 10 . Traps | -11 -10 -10 -9 -9 -9 -8 -8 -7 ------- Run | Scr Mat Min Mat Min Exi Min Mat Fac Traps Triggered 11 | . 1 . 1 . . . 2 7 Indirectly . | . . . . . . . . . Trap Hack Attempts . | . . . . . . . . . Triggered . | . . . . . . . . . Disarmed . | . . . . . . . . . Reprogrammed . | . . . . . . . . . Reused . | . . . . . . . . . Traps Extracted . | . . . . . . . . . Installed . | . . . . . . . . . Triggered . | . . . . . . . . . Machines | -11 -10 -10 -9 -9 -9 -8 -8 -7 ---------- Run | Scr Mat Min Mat Min Exi Min Mat Fac Machines Disabled 23 | . 1 2 1 . . . . 19 Max in Single Turn 16 | . 1 1 1 . . . . 16 Garrison Access 2 | . . . . . . . . 2 Machines Sabotaged . | . . . . . . . . . Garrisons Compromised . | . . . . . . . . . Overloaded Fab Kills . | . . . . . . . . . Fab Network Shutdowns . | . . . . . . . . . Hacking | -11 -10 -10 -9 -9 -9 -8 -8 -7 --------- Run | Scr Mat Min Mat Min Exi Min Mat Fac Machines Accessed 32 | . 7 3 3 . 1 . 4 14 Terminals 18 | . 6 2 2 . . . 3 5 Fabricators 1 | . . . . . . . . 1 Repair Stations 1 | . . . . . . . . 1 Recycling Units 8 | . 1 . 1 . . . 1 5 Scanalyzers . | . . . . . . . . . Garrison Access 2 | . . . . . . . . 2 Total Hacks 71 | . 23 8 5 . 1 . 10 24 Successful 43 | . 17 6 4 . 1 . 4 11 Failed 28 | . 6 2 1 . . . 6 13 Catastrophic 6 | . 1 . . . . . 2 3 Database Lockouts . | . . . . . . . . . Manual 31 | . 16 1 3 . 1 . 5 5 Terminals 54 | . 21 7 4 . . . 9 13 Fabricators 1 | . . . . . . . . 1 Repair Stations 3 | . . . . . . . . 3 Recycling Units 9 | . 2 . 1 . . . 1 5 Scanalyzers . | . . . . . . . . . Garrison Access 2 | . . . . . . . . 2 Terminal Hacks 22 | . 7 6 2 . 1 . 3 3 Record 4 | . 2 1 . . . . . 1 Open Door 1 | . . 1 . . . . . . Branch Access Points 3 | . . . 1 . . . 1 1 Alert Level 5 | . 2 1 . . . . 1 1 Locate Traps 4 | . 3 1 . . . . . . Dispatch Records 2 | . . 1 . . . . 1 . Registered Components 1 | . . . 1 . . . . . Zone Layout 1 | . . 1 . . . . . . EX-Prototype ID Bank 1 | . . . . . 1 . . . Fabricator Hacks . | . . . . . . . . . Repair Station Hacks 1 | . . . . . . . . 1 Scan Component 1 | . . . . . . . . 1 Recycling Unit Hacks 9 | . 2 . 1 . . . 1 5 Process 1 | . . . 1 . . . . . Report Inventory 7 | . 1 . . . . . 1 5 Retrieve Components 1 | . 1 . . . . . . . Scanalyzer . | . . . . . . . . . Garrison Access Hacks 2 | . . . . . . . . 2 Seal Access 2 | . . . . . . . . 2 Unauthorized Hacks 9 | . 8 . 1 . . . . . Terminals 9 | . 8 . 1 . . . . . Track 2 | . 2 . . . . . . . Botnet 7 | . 6 . 1 . . . . . Fabricators . | . . . . . . . . . Repair Stations . | . . . . . . . . . Recycling Units . | . . . . . . . . . Scanalyzers . | . . . . . . . . . Garrison Access . | . . . . . . . . . Data Cores Recovered 3 | . . . 1 . . . 1 1 Used 2 | . . . 1 . . . 1 . Hacking Detections 24 | . 6 1 3 . . . 4 10 Full Trace Events 5 | . 1 1 . . . . 2 1 Feedback Events . | . . . . . . . . . Feedback Blocked . | . . . . . . . . . Robot Schematics Acquired . | . . . . . . . . . Robots Built . | . . . . . . . . . Matter . | . . . . . . . . . Time . | . . . . . . . . . Total Robot Build Rating . | . . . . . . . . . Part Schematics Acquired . | . . . . . . . . . Parts Built . | . . . . . . . . . Matter . | . . . . . . . . . Time . | . . . . . . . . . Total Part Build Rating . | . . . . . . . . . Parts Repaired . | . . . . . . . . . Time . | . . . . . . . . . Parts Recycled . | . . . . . . . . . Recycled Matter 13 | . . . 13 . . . . . Retrieved Matter . | . . . . . . . . . Retrieved Components 7 | . 7 . . . . . . . Parts Scanalyzed . | . . . . . . . . . Part Schematics Acquired . | . . . . . . . . . Parts Damaged . | . . . . . . . . . Bothacking | -11 -10 -10 -9 -9 -9 -8 -8 -7 ------------ Run | Scr Mat Min Mat Min Exi Min Mat Fac Used RIF Installer . | . . . . . . . . . Robots Hacked . | . . . . . . . . . Non-combat . | . . . . . . . . . Combat . | . . . . . . . . . Robot Hacks Applied . | . . . . . . . . . Relay Couplers Released . | . . . . . . . . . Robots Rewired . | . . . . . . . . . Allies Hacked . | . . . . . . . . . Hacks Repelled . | . . . . . . . . . Allies | -11 -10 -10 -9 -9 -9 -8 -8 -7 -------- Run | Scr Mat Min Mat Min Exi Min Mat Fac Total Allies 3 | . . 3 . . . . . . Largest Group 3 | . . 3 2 1 . . . . Highest-Rated Group 40 | . . 40 32 16 . . . . Highest-Rated Ally 16 | . . 16 16 16 . . . . Total Orders . | . . . . . . . . . Ally Attacks 60 | . . 5 55 . . . . . Total Damage 692 | . . 55 637 . . . . . Kills 12 | . . 1 11 . . . . . Allies Corrupted . | . . . . . . . . . Allies Melted . | . . . . . . . . . Intel | -11 -10 -10 -9 -9 -9 -8 -8 -7 ------- Run | Scr Mat Min Mat Min Exi Min Mat Fac Robot Analysis Total . | . . . . . . . . . Derelict Logs Recovered 1 | . . 1 . . . . . . Drone Launches . | . . . . . . . . . Drone Recoveries . | . . . . . . . . . Exploration | -11 -10 -10 -9 -9 -9 -8 -8 -7 ------------- Run | Scr Mat Min Mat Min Exi Min Mat Fac Turns Passed 6778 | 94 934 1137 992 87 407 587 1459 1081 Spaces Moved 6252 | 48 429 671 527 46 253 351 1328 2599 Core 8 | 7 . . . . . . 1 . Treads 2743 | 41 429 671 527 46 253 351 425 . Legs . | . . . . . . . . . Wheels . | . . . . . . . . . Hover . | . . . . . . . . . Flight 3501 | . . . . . . . 902 2599 Fastest Speed 24 | 50 160 160 160 160 160 160 27 24 Average Speed 84 | 143 160 160 160 160 160 160 70 24 Slowest Speed 550 | 160 160 160 160 160 160 160 550 27 Overloaded Moves . | . . . . . . . . . Propulsion Burnouts . | . . . . . . . . . Robots Hopped 10 | . . . . . . . 4 6 Cave-ins Triggered . | . . . . . . . . . Exploration Rate (%) 59 | 4 83 98 53 19 62 79 71 64 Regions Visited 8 Branch Regions 4 Pre-discovered Areas 1 | . . 1 . . . . . . Known Exits Taken 3 | . 1 . 1 . . 1 . . Unknown Exits Taken 5 | 1 . 1 . 1 1 . 1 . Scrap Searched 3 | . . 1 . . . 2 . . Spaces Dug . | . . . . . . . . . Terrain Destroyed 151 | . . 1 13 . . 9 31 97 Melee . | . . . . . . . . . Projectile 5 | . . 1 1 . . . . 3 AOE 146 | . . . 12 . . 9 31 94 Terrain Rammed . | . . . . . . . . . Walls Destroyed . | . . . . . . . . . Machines Disabled . | . . . . . . . . . Actions | -11 -10 -10 -9 -9 -9 -8 -8 -7 --------- Run | Scr Mat Min Mat Min Exi Min Mat Fac Total 7289 | 61 555 716 606 50 255 361 1748 2937 Wait 537 | . 20 27 12 . . 1 313 164 Move 6224 | 47 428 670 526 45 252 350 1319 2587 Hop 10 | . . . . . . . 4 6 Pick Up . | . . . . . . . . . Fast Attach 67 | 9 10 2 9 . 2 . 20 15 Attach . | . . . . . . . . . Detach . | . . . . . . . . . Swap 1 | . . . 1 . . . . . Drop 52 | 1 10 2 9 . 1 . 17 12 Fire 254 | 4 61 9 35 5 . 8 49 83 Melee . | . . . . . . . . . Ram . | . . . . . . . . . Kick . | . . . . . . . . . Crush 1 | . . 1 . . . . . . Escape Stasis 56 | . . . . . . . . 56 Rewire . | . . . . . . . . . Trap . | . . . . . . . . . Miscellaneous 87 | . 26 5 14 . . 2 26 14 Route ------- -11/Scrapyard -10/Materials (discovered 3 exits: *Mat x2 / *Min) -10/Mines (discovered 2 exits: *Mat x2) -9/Materials (discovered 5 exits: *Mat x3 / *Min x2) -9/Mines (discovered 2 exits: *Mat / *Exi) -9/Exiles -8/Mines -8/Materials -7/Factory (discovered 7 exits: [*Fac x4] / *Sto / *Low x2) History --------- Turn | Location | Event 4 | -11/Scrapyard | Discovered new exit (range 15) 6 | -11/Scrapyard | Upgraded with Power slot (x1) 6 | -11/Scrapyard | Upgraded with Propulsion slot (x1) 6 | -11/Scrapyard | Upgraded with Utility slot (x1) 6 | -11/Scrapyard | Upgraded with Weapon slot (x1) 95 | -11/Scrapyard | Entered Materials 303 | -10/Materials | Build established: Mutant 463 | -10/Materials | Discovered new exit (range 16) 735 | -10/Materials | Discovered new exit (range 16) 811 | -10/Materials | Reached level 2 835 | -10/Materials | Discovered new exit (range 15) 1003 | -10/Materials | Identified exit to Mines 1029 | -10/Materials | Entered Mines 1046 | -10/Mines | Met a Derelict shopkeep closing up shop 1106 | -10/Mines | Discovered new exit (range 5) 1162 | -10/Mines | Learned 8 Materials zone layouts 1298 | -10/Mines | Discovered new exit (range 13) 1306 | -10/Mines | Assisted by bots powering up and referring to "LRC-V3" 1632 | -10/Mines | Reached level 3 1637 | -10/Mines | Upgraded with Utility slot (x1) 1951 | -10/Mines | Learned location of Storage (-7) 2166 | -10/Mines | Entered Materials 2166 | -9/Materials | Accompanied by 2 allies 2167 | -9/Materials | Identified exit to Materials 2167 | -9/Materials | Identified exit to Mines 2168 | -9/Materials | Reached level 4 2539 | -9/Materials | Reached level 5 2602 | -9/Materials | Discovered exit to Materials (range 3) 3107 | -9/Materials | Reached level 6 3158 | -9/Materials | Entered Mines 3158 | -9/Mines | Accompanied by 1 ally 3159 | -9/Mines | Assembled infested the area 3173 | -9/Mines | Discovered exit to Materials (range 5) 3239 | -9/Mines | Deemed a non-threat by the Exiles lab entrance 3239 | -9/Mines | Discovered new exit (range 5) 3245 | -9/Mines | Entered Exiles 3247 | -9/Exiles | Reached level 7 3285 | -9/Exiles | Met 8R-AWN 3311 | -9/Exiles | Met EX-HEX 3361 | -9/Exiles | Met EX-BIN 3380 | -9/Exiles | Aligned with FarCom system 3381 | -9/Exiles | Given EX-Vault access code 3425 | -9/Exiles | Opened EX-Vault 3436 | -9/Exiles | Found Cloak of Protection 3470 | -9/Exiles | Upgraded with Utility slot (x1) 3534 | -9/Exiles | Warned to stay clear of 0b10 Research branches 3577 | -9/Exiles | Met EX-DEC 3633 | -9/Exiles | Discovered new exit (range 14) 3652 | -9/Exiles | Left Exiles lab with Cloak of Protection 3652 | -9/Exiles | Entered Mines 4227 | -8/Mines | Discovered exit to Materials (range 3) 4239 | -8/Mines | Entered Materials 4241 | -8/Materials | Reached level 8 4551 | -8/Materials | Reached level 9 4554 | -8/Materials | Upgraded with Propulsion slot (x1) 5080 | -8/Materials | Garrison activated, responded to threat 5173 | -8/Materials | Reached level 10 5174 | -8/Materials | Upgraded with Power slot (x1) 5208 | -8/Materials | Core integrity fell below 50% 5218 | -8/Materials | Reached level 11 5252 | -8/Materials | Upgraded with Propulsion slot (x1) 5598 | -8/Materials | Build established: Infiltrator-Sprinter 5635 | -8/Materials | Discovered new exit (range 16) 5698 | -8/Materials | Entered Factory 5700 | -7/Factory | Reached level 12 5700 | -7/Factory | Upgraded with Propulsion slot (x1) 5788 | -7/Factory | Discovered new exit (range 9) 5887 | -7/Factory | Core integrity fell below 50% 6002 | -7/Factory | Build established: Generator-Sprinter 6010 | -7/Factory | Discovered new exit (range 16) 6161 | -7/Factory | Reached level 13 6317 | -7/Factory | Discovered new exit (range 12) 6388 | -7/Factory | Discovered new exit (range 12) 6445 | -7/Factory | Identified exit to Storage 6445 | -7/Factory | Identified exit to Lower Caves 6595 | -7/Factory | Discovered new exit (range 15) 6669 | -7/Factory | Reached level 14 6757 | -7/Factory | Core integrity fell below 20% 6779 | -7/Factory | Destroyed by Y-54 Guardian with Gatling Laser Last Messages --------------- 06711_ K-01 Serf collects debris. 06713_ Connecting with Garrison Access... 06714_ Slug penetrates Garrison Access. 06715_ Y-54 Guardian emerges from the garrison. 06716_ The unstable cave ceiling collapses. 06716_ K-01 Serf collects debris. 06719_ System corrupted: Component data lost. 06720_ The unstable cave ceiling collapses. 06721_ K-01 Serf collects debris. 06736_ The unstable cave ceiling collapses. 06738_ K-01 Serf collects debris. 06740_ Y-54 Guardian emerges from the garrison. 06742_ K-01 Serf collects debris. 06747_ System corrupted: Component data lost. 06748_ K-01 Serf collects debris. 06757_ Y-54 Guardian destroyed. 06758_ K-01 Serf collects debris. 06776_ The unstable cave ceiling collapses. 06776_ K-01 Serf collects debris. 06777_ The unstable cave ceiling collapses. Map ----- +----------------------------------------------------+ | # #=! ! """" #??# ## """""" | | # #!! """" #??# ## ""F "" | | ##+#########? # """" #??# ## """ | | # #????? # """" #??# ## | | # #?????? # """" #??# | | # [#?????? # """" #??# = """" """ | | # #??????? # #??# """" """ | | # #??????? # #?## """" """ | | # #???????? # ### | | ########????????### + | | ???????????????????#######+######## ###### | | ??????????????????????# #???# ######????# | | ??????????????????? ?# ##### #?????????# | | ??????????????????"" # ######????# | | ?????????????????? + %>! !! ?# | | ?????????????????""" # ! [ ^ !! ##+ | | ??????????????? ##### !! [[ # | | ??????????????? ##### [ ?# | | ????????????????#### ## # ## ?# | | #??????????????????# ## ??# | | #??????????????????# k ### ??### | | #??????????????????# # ?????? | | #??????????????????# #######???????? | | #???????????????????# #?????????????? | | #???????????????????# ##?????????????? | | #???????????????????#] @ % " ##??????????????? | | ##??????????????????# * =Y""" #??????????????? | | #??????????????????# % G ##??????????????? | | #??????????????????# """ #???????????????? | | #??????????????????# Y " #???????????????? | | #??????????????????# ! #???????????????? | | #?????????##??###??#########;#+##???????????????? | | #?????????# ?? #???# # #????????????????? | | ??????????# """ """ #???# #? ????????????????? | | #??????????# """ """ #???###??#???????????????? | | ???????????# """ """ #????????????????????????? | | ???????????# #????????????????????????? | | ???????????# """ #????????????????????????? | | ############ ! """ #????????????????????????? | | ## """ ] #????????????????????????? | | = ##""" #????????????????????????? | | ##"T #????????????????????????? | | """ """ ##""" #????????????????????????? | | """ """ ## ] #????????????????????????? | | """ """ ########+##############????????????????? | | #????# ???????????????? | | """ """ #????# ???????????????? | | """ """ #????# ???????????????? | | """ """ ###### ???????????????? | | + ???????????????? | +----------------------------------------------------+ Best States ------------- Heat Dissipation 91 Energy Generation 47 Energy Capacity 430 Matter Stores 300 Matter Capacity 300 Sight Range 16 Terrain Scan Range 16 Terrain Scan Density 60 ECM Strength 2 Cloak Strength 5 Armor Coverage 150 Resistance: KI 15 Resistance: TH 10 Resistance: EX 20 Weapon Shielding 33 Evasion (%) 65 Targeting Accuracy 16 Recoil Reduction 2 Item Schematics ----------------- None Robot Schematics ------------------ None Fabricated ------------ Nothing Alien Tech Used ----------------- None Achievements -------------- None Challenges ------------ None RPGLIKE | -11 -10 -10 -9 -9 -9 -8 -8 -7 --------- Run | Scr Mat Min Mat Min Exi Min Mat Fac Levels Raised 13 | . 1 1 3 . 1 . 4 3 XP Earned 23429 | 3000 1640 1487 5082 750 350 1000 5151 4969 XP Spent 22050 | 3000 1460 1500 3000 1515 1460 . 5250 4865 Upgrades 62 | 11 4 2 12 6 5 . 8 14 Power Slot 2 | 1 . . . . . . 1 . Propulsion Slot 4 | 1 . . . . . . 2 1 Utility Slot 3 | 1 . 1 . . 1 . . . Weapon Slot 1 | 1 . . . . . . . . Core Integrity 20 | . . . 4 1 4 . . 11 Heat Dissipation 11 | 6 2 . 3 . . . . . Energy Generation 2 | . . . . . . . 1 1 Mass Support 2 | . . . . . . . 2 . Ranged Accuracy 8 | 1 2 1 2 . . . 1 1 KI Resistance % 3 | . . . 1 1 . . 1 . TH Resistance % 2 | . . . 1 1 . . . . EX Resistance % 4 | . . . 1 3 . . . . Protomatter Created 737 | . 173 24 99 . . 12 309 120 Integrity Restored 1698 | . 510 77 238 . . 36 543 294 Core 1420 | . 368 24 155 . . 36 543 294 Parts 278 | . 142 53 83 . . . . . Protomatter Decayed 414 | . . 72 280 19 . . 43 . Game ------ Seed InertialHardlightRedirector Manual? 0 Play Time 01:17:26 Cumulative 105.3 hours Start 2021.11.18 @ 11:53:27 End 2021.11.18 @ 13:10:34 Sessions 1 Manual Loads 0 Difficulty Rogue Special Mode Winter2019/RPGLIKE Game No. 31 Rogue 1 Adventurer 0 Explorer 30 Win Type - Total 4 Types 0/1/0/2/0/0/0/0/1 Lore% 51 Gallery% 44 Achievement% 48 Wizard Run 0 Options --------- ASCII 0 Keyboard 0 Movement Mouse Keybinds 0 Fullscreen 2 Font 18/SmallcapsGlow Map View 76x50 Tactical HUD 1 Map Filters NONE Filters NONE Steam 1 RUN: 3f33f8ba-363f-4399-b87b-2fad10d6103b